bitfinex-derivatives/quotes_SOLF0:USTF0_20241002
["timestamp","ask_amount","ask_price","bid_price","bid_amount"]
[1727896368287,44.47,140.38,140.32,3.5629]
[1727896368483,3.562,140.37,140.32,3.5629]
[1727896368682,3.562,140.37,140.3,3.5634]
[1727896368898,3.562,140.37,140.31,2.6501]
[1727896369490,44.47,140.38,140.31,2.6501]
[1727896370003,44.47,140.38,140.36,3.5619]
[1727896370300,0.12502,140.39,140.32,5.4626]
[1727896370493,0.12502,140.39,140.34,3.5625]
[1727896370689,0.12502,140.39,140.34,14.12]
[1727896371292,0.12502,140.45,140.34,14.12]
[1727896371494,44.59502,140.45,140.34,14.12]
[1727896371798,44.47,140.43,140.36,3.5619]
[1727896371994,44.47,140.41,140.36,14.12]
[1727896372201,44.47,140.38,140.36,14.12]
[1727896372497,44.47,140.41,140.36,14.12]
[1727896372701,48.0305,140.43,140.36,14.12]
[1727896372894,44.47,140.43,140.36,14.12]
[1727896373195,3.5607,140.42,140.36,14.12]
[1727896373401,44.47,140.41,140.36,17.6819]
[1727896373606,44.47,140.41,140.36,14.12]
[1727896373795,3.5616,140.38,140.36,14.12]
[1727896373990,44.47,140.41,140.36,14.12]
[1727896375192,44.47,140.41,140.33,0.12502]
[1727896375392,3.5612,140.4,140.34,14.12]
[1727896375589,44.47,140.41,140.34,14.12]
[1727896376193,44.47,140.41,140.39,3.5612]
[1727896376600,44.47,140.41,140.34,14.12]
[1727896376808,44.47,140.41,140.4,3.561]
[1727896377105,44.47,140.41,140.34,14.12]
[1727896377604,3.5611,140.4,140.34,14.12]
[1727896377807,44.47,140.41,140.34,14.12]
[1727896378305,44.59502,140.45,140.34,14.12]
[1727896378496,44.59502,140.45,140.35,76.96]
[1727896378898,44.47,140.55,140.43,89.0]
[1727896379100,44.47,140.5,140.39,77.06502]
[1727896379292,44.47,140.45,140.39,0.12502]
[1727896379799,2.7823,140.49,140.39,0.12502]
[1727896379800,44.47,140.48,140.39,0.12502]
[1727896380001,3.54543512,140.54,140.45,0.12502]
[1727896380310,44.47,140.54,140.45,0.12502]
[1727896381307,48.0276,140.54,140.45,0.12502]
[1727896381508,76.64678441,140.56,140.45,0.12502]
[1727896381802,3.5574,140.55,140.5,3.5583]
[1727896383205,76.64678441,140.56,140.45,0.12502]
[1727896383398,80.20378441,140.56,140.52,3.558]
[1727896383708,76.64678441,140.56,140.45,0.12502]
[1727896383907,44.47,140.54,140.45,0.12502]
[1727896384297,3.5578,140.53,140.48,3.5589]
[1727896384496,121.11678441,140.56,140.45,0.12502]
[1727896385107,0.12502,140.57,140.46,44.47]
[1727896385609,0.12502,140.57,140.53,3.5577]
[1727896386007,44.47,140.56,140.45,0.12502]
[1727896386211,0.12502,140.57,140.46,44.47]
[1727896386598,0.12502,140.57,140.49,3.5587]
[1727896386909,0.12502,140.57,140.46,44.47]
[1727896387805,3.5574,140.55,140.51,3.5582]
[1727896388192,0.12502,140.57,140.51,3.5582]
[1727896388393,0.12502,140.57,140.46,44.47]
[1727896388598,0.12502,140.57,140.49,44.47]
[1727896388810,0.12502,140.57,140.52,3.558]
[1727896388811,3.68182,140.57,140.52,3.558]
[1727896389203,44.47,140.56,140.46,15.18]
[1727896389804,0.12502,140.57,140.46,15.18]
[1727896389805,44.47,140.54,140.46,15.18]
[1727896390015,3.5583,140.51,140.46,15.18]
[1727896390201,2.8654,140.53,140.46,15.18]
[1727896390909,3.5582,140.52,140.48,3.5588]
[1727896391096,2.8654,140.53,140.46,15.18]
[1727896391505,2.8005,140.55,140.46,15.18]
[1727896392014,0.12502,140.57,140.46,59.65]
[1727896392410,0.12502,140.57,140.49,44.47]
[1727896392910,0.12502,140.57,140.51,44.47]
[1727896393110,0.12502,140.57,140.52,2.787]
[1727896393307,0.12502,140.63,140.53,59.65]
[1727896393510,0.12502,140.63,140.56,44.39]
[1727896393705,0.12502,140.63,140.6,3.5558]
[1727896394119,0.12502,140.63,140.56,44.39]
[1727896394811,0.12502,140.63,140.58,44.39]
[1727896395021,0.12502,140.69,140.58,44.39]
[1727896395409,44.39,140.66,140.57,0.12502]
[1727896395608,44.38,140.66,140.57,0.12502]
[1727896396108,44.38,140.66,140.6,3.5559]
[1727896396303,44.38,140.66,140.57,0.12502]
[1727896396504,3.5562,140.59,140.57,0.12502]
[1727896396717,27.33,140.61,140.57,0.12502]
[1727896397417,27.33,140.61,140.57,3.68172]
[1727896397418,3.556,140.6,140.57,3.68172]
[1727896397803,27.33,140.61,140.57,0.12502]
[1727896398820,2.8604,140.64,140.51,0.12502]
[1727896398821,27.33,140.59,140.51,0.12502]
[1727896399632,27.33,140.61,140.51,0.12502]
[1727896400006,0.12502,140.63,140.6,3.5559]
[1727896400212,0.12502,140.63,140.56,42.01]
[1727896400609,0.12502,140.63,140.57,2.8438]
[1727896400913,0.12502,140.63,140.62,3.5555]
[1727896404717,0.12502,140.69,140.61,44.38]
[1727896405424,3.67882,140.69,140.61,44.38]
[1727896405612,0.12502,140.69,140.61,44.38]
[1727896405817,0.12502,140.69,140.66,3.5543]
[1727896406213,0.12502,140.69,140.61,44.38]
[1727896406414,0.12502,140.69,140.68,3.5539]
[1727896406935,0.12502,140.75,140.66,44.38]
[1727896407120,0.12502,140.75,140.67,5.3574]
[1727896407531,0.12502,140.75,140.67,2.6653]
[1727896408137,0.12502,140.75,140.68,44.38]
[1727896408624,0.12502,140.75,140.74,3.5524]
[1727896408924,0.12502,140.75,140.71,14.68]
[1727896409320,0.12502,140.75,140.72,3.5528]
[1727896409730,0.12502,140.75,140.73,3.5525]
[1727896410025,0.12502,140.75,140.71,14.68]
[1727896410622,0.12502,140.75,140.6,7.1118]
[1727896410623,44.50502,140.75,140.62,16.8321]
[1727896410829,44.50502,140.75,140.67,3.5542]
[1727896410830,3.5535,140.7,140.67,3.5542]
[1727896411125,44.50502,140.75,140.62,14.14]
[1727896411126,44.38,140.73,140.62,14.14]
[1727896411333,5.5105,140.72,140.62,14.14]
[1727896411521,5.5105,140.72,140.59,44.38]
[1727896411522,44.38,140.7,140.59,44.38]
[1727896411834,44.38,140.7,140.6,14.14]
[1727896412125,3.554,140.68,140.63,3.68002]
[1727896412330,44.38,140.7,140.63,3.68002]
[1727896412331,44.38,140.7,140.63,0.12502]
[1727896412528,3.5535,140.7,140.66,3.5543]
[1727896412715,5.5105,140.72,140.63,0.12502]
[1727896413326,44.38,140.7,140.63,0.12502]
[1727896413529,3.5545,140.66,140.63,0.12502]
[1727896413831,44.38,140.7,140.63,0.12502]
[1727896414336,3.5541,140.68,140.64,3.5549]
[1727896414535,3.5541,140.68,140.63,0.12502]
[1727896414834,5.5105,140.72,140.63,0.12502]
[1727896415429,5.5105,140.72,140.65,3.5546]
[1727896415729,5.5105,140.72,140.63,0.12502]
[1727896415931,3.5541,140.68,140.64,3.5549]
[1727896416327,44.38,140.7,140.63,0.12502]
[1727896416925,3.5533,140.71,140.67,3.554]
[1727896417130,3.5533,140.71,140.63,0.12502]
[1727896417131,5.5105,140.72,140.63,48.07898744]
[1727896417334,2.6648,140.72,140.66,58.52]
[1727896417632,0.12502,140.75,140.71,3.553]
[1727896418133,3.67722,140.75,140.71,3.553]
[1727896418333,3.67722,140.75,140.66,61.1391]
[1727896418838,3.67722,140.75,140.67,2.7512]
[1727896419125,0.12502,140.75,140.67,2.7512]
[1727896419527,0.12502,140.75,140.72,3.5528]
[1727896419722,0.12502,140.75,140.67,47.1012]
[1727896420130,0.12502,140.75,140.74,3.5524]
[1727896421426,0.12502,140.81,140.72,58.01]
[1727896421822,3.5512,140.79,140.72,58.01]
[1727896422026,0.12502,140.81,140.75,3.552]
[1727896422335,0.12502,140.81,140.72,58.01]
[1727896422336,3.5509,140.8,140.72,58.01]
[1727896422536,0.12502,140.81,140.72,58.01]
[1727896422735,0.12502,140.81,140.75,3.552]
[1727896422935,3.5513,140.79,140.75,3.552]
[1727896423238,0.12502,140.81,140.72,58.01]
[1727896423435,44.35,140.8,140.71,13.66]
[1727896424322,3.5517,140.77,140.71,13.66]
[1727896424523,44.35,140.8,140.71,13.66]
[1727896424730,44.35,140.8,140.75,3.5521]
[1727896425033,3.5516,140.78,140.75,3.5521]
[1727896425222,0.12502,140.81,140.77,44.35]
[1727896425423,0.12502,140.87,140.8,44.35]
[1727896426035,0.12502,140.87,140.86,3.5494]
[1727896431940,0.12502,140.87,140.84,58.01]
[1727896431941,0.12502,140.87,140.84,51.6319]
[1727896432141,1.0,140.86,140.84,50.6319]
[1727896433236,1.0,140.86,140.85,3.5496]
[1727896433847,1.0,140.86,140.81,3.5505]
[1727896434038,1.0,140.86,140.79,13.64]
[1727896434448,1.0,140.86,140.81,3.5505]
[1727896434744,1.0,140.86,140.79,57.99]
[1727896434945,1.0,140.86,140.82,44.35]
[1727896435336,1.0,140.86,140.79,57.99]
[1727896435654,1.0,140.86,140.83,3.55]
[1727896435837,4.5494,140.86,140.83,3.55]
[1727896436037,4.5494,140.86,140.82,3.5502]
[1727896436232,1.0,140.86,140.79,57.99]
[1727896436439,3.5498,140.85,140.79,57.99]
[1727896436638,3.5498,140.85,140.82,3.5504]
[1727896436838,4.5495,140.86,140.82,3.5504]
[1727896437139,1.0,140.86,140.82,3.5504]
[1727896437337,4.5494,140.86,140.83,3.5501]
[1727896437535,1.0,140.86,140.83,44.35]
[1727896437960,1.0,140.86,140.85,47.8996]
[1727896438150,1.0,140.86,140.85,61.0796]
[1727896438657,0.12502,140.87,140.86,3.5494]
[1727896439536,0.12502,140.87,140.85,57.53]
[1727896439537,1.0,140.88,140.87,3.5491]
[1727896439744,1.0,140.89,140.87,44.35]
[1727896440152,1.0,140.89,140.88,3.5489]
[1727896440348,1.0,140.95,140.87,44.35]
[1727896440650,1.0,140.95,140.9,47.8984]
[1727896441046,1.0,140.95,140.9,44.35]
[1727896441352,1.0,140.95,140.92,47.8979]
[1727896442453,1.0,140.95,140.94,3.5474]
[1727896443456,1.0,140.97,140.93,3.49450159]
[1727896443655,1.12502,140.99,140.96,44.35]
[1727896443957,1.12502,140.99,140.97,13.18]
[1727896444146,1.12502,140.99,140.98,44.35]
[1727896444339,1.12502,140.99,140.98,47.8964]
[1727896444838,0.12518,141.0,140.98,44.35]
[1727896445041,0.12518,141.0,140.99,3.5461]
[1727896445558,0.12518,141.0,140.93,57.63502]
[1727896445954,0.12518,141.0,140.95,3.5471]
[1727896446257,0.12518,141.0,140.93,57.63502]
[1727896446644,0.12518,141.0,140.96,3.5467]
[1727896446842,0.12518,141.0,140.93,57.63502]
[1727896447256,3.5466,140.98,140.93,16.83252]
[1727896447457,8.2204,140.99,140.93,16.83252]
[1727896447659,0.12518,141.0,140.93,16.83252]
[1727896447660,0.12518,141.0,140.94,3.51975579]
[1727896447852,0.12518,141.0,140.93,57.63502]
[1727896448557,3.67118,141.0,140.96,3.5467]
[1727896448861,0.12518,141.0,140.93,61.25016309]
[1727896449169,0.12518,141.0,140.97,3.5466]
[1727896449754,0.12518,141.0,140.93,57.63502]
[1727896450260,0.12518,141.0,140.93,61.19129955]
[1727896450561,0.12518,141.0,140.97,3.5465]
[1727896450961,0.12518,141.0,140.93,57.63502]
[1727896451272,0.12518,141.0,140.97,3.5466]
[1727896451468,0.12518,141.0,140.93,61.16197035]
[1727896451670,0.12518,141.0,140.99,3.5461]
[1727896452064,0.12518,141.0,140.99,16.2061]
[1727896452468,1.0,141.01,140.99,12.66]
[1727896452665,1.0,141.01,141.0,47.8959]
[1727896453071,1.0,141.03,141.0,44.35]
[1727896453270,1.0,141.03,141.02,3.5454]
[1727896453977,1.0,141.04,141.03,3.5451]
[1727896454170,1.0,141.04,141.03,47.8951]
[1727896454566,1.0,141.06,141.03,47.91357896]
[1727896454773,1.0,141.1,141.05,44.35]
[1727896454964,1.0,141.1,141.09,44.35]
[1727896455169,1.0,141.1,141.09,47.8936]
[1727896455575,1.12502,141.17,141.09,44.35]
[1727896456170,1.12502,141.17,141.11,3.5431]
[1727896456776,1.12502,141.17,141.13,3.5426]
[1727896456971,1.12502,141.17,141.13,57.01]
[1727896457581,1.12502,141.17,141.15,3.5421]
[1727896458173,1.12502,141.17,141.09,44.35]
[1727896458673,1.12502,141.17,141.07,3.5439]
[1727896458674,3.7685,141.16,141.07,3.5439]
[1727896458872,2.7174,141.15,141.07,3.5439]
[1727896459074,2.7174,141.15,141.06,12.66]
[1727896459269,2.759,141.14,141.06,16.2043]
[1727896459470,44.35,141.13,141.05,0.12502]
[1727896460085,44.35,141.13,141.01,12.66]
[1727896460273,2.759,141.14,140.99,0.12502]
[1727896460274,44.35,141.1,140.99,0.12502]
[1727896460581,3.5454,141.02,140.99,0.12502]
[1727896460785,44.35,141.08,140.99,0.12502]
[1727896460969,2.746,141.07,140.99,0.12502]
[1727896461376,3.545,141.04,141.0,3.5458]
[1727896461580,2.746,141.07,140.99,0.12502]
[1727896461975,3.5453,141.03,140.99,3.67112]
[1727896462175,2.746,141.07,140.99,0.12502]
[1727896463786,3.5451,141.04,141.0,3.5457]
[1727896463979,2.746,141.07,140.99,0.12502]
[1727896464389,3.545,141.04,141.0,3.5457]
[1727896464574,2.746,141.07,140.99,0.12502]
[1727896465082,3.5448,141.05,141.01,3.5455]
[1727896465278,3.5448,141.05,140.99,0.12502]
[1727896465482,2.746,141.07,140.99,0.12502]
[1727896465791,3.5456,141.02,140.99,0.12502]
[1727896465985,2.746,141.07,140.99,0.12502]
[1727896466186,3.5453,141.03,140.99,3.67102]
[1727896466377,3.5453,141.03,140.99,0.12502]
[1727896466691,3.546,141.0,140.96,3.5467]
[1727896466875,2.718,141.02,140.94,12.2]
[1727896467074,2.718,141.02,140.93,197.17407]
[1727896468486,2.718,141.02,140.93,152.82407]
[1727896468687,0.12502,140.99,140.93,144.20057]
[1727896468893,44.35,140.98,140.93,119.53497]
[1727896469187,3.5474,140.94,140.93,106.73557]
[1727896469785,12.32502,140.99,140.93,106.73557]
[1727896470185,3.5474,140.94,140.93,106.73557]
[1727896470904,47.8974,140.94,140.93,106.73557]
[1727896471191,51.47622471,140.94,140.93,106.73557]
[1727896471692,7.01235785,140.94,140.93,106.73557]
[1727896472295,3.5479,140.92,140.91,1.0]
[1727896472485,44.35,140.92,140.89,1.0]
[1727896472693,3.5489,140.88,140.85,1.0]
[1727896472993,44.35,140.88,140.85,1.0]
[1727896473185,3.5499,140.84,140.83,1.0]
[1727896473383,47.8999,140.84,140.83,1.0]
[1727896474299,1.0,140.87,140.81,1.12502]
[1727896474479,3.5504,140.82,140.81,1.12502]
[1727896474683,15.7504,140.82,140.81,1.12502]
[1727896475082,1.0,140.87,140.81,1.12502]
[1727896475294,0.12502,140.93,140.84,44.35]
[1727896475496,0.12502,140.93,140.86,44.35]
[1727896475993,0.12502,140.93,140.88,44.35]
[1727896476388,0.12502,140.93,140.9,3.5482]
[1727896476900,0.12502,140.93,140.92,3.5479]
[1727896477096,1e-08,140.93,140.92,3.5479]
[1727896477985,0.12502,140.99,140.97,3.5464]
[1727896478383,0.12502,140.99,140.95,44.35]
[1727896478589,1e-08,140.99,140.98,47.8964]
[1727896479100,1e-08,140.99,140.96,44.35]
[1727896479788,1e-08,140.99,140.93,44.47501999]
[1727896480088,1e-08,140.99,140.93,0.12501999]
[1727896480801,44.35000001,140.99,140.93,0.12501999]
[1727896481094,3.5474,140.94,140.93,0.12501999]
[1727896481896,44.35,140.94,140.87,0.12502]
[1727896482084,12.2,140.95,140.87,0.12502]
[1727896482996,3.5481,140.92,140.87,0.12502]
[1727896483303,12.2,140.94,140.87,3.67412]
[1727896483803,3.5479,140.92,140.87,3.67412]
[1727896483996,12.2,140.94,140.87,3.67412]
[1727896484198,12.2,140.94,140.87,0.12502]
[1727896484702,12.2,140.95,140.87,0.12502]
[1727896485800,3.5483,140.91,140.87,0.12502]
[1727896486194,12.2,140.95,140.87,0.12502]
[1727896486899,0.12502,140.99,140.91,3.5481]
[1727896487092,0.12502,140.99,140.9,44.33]
[1727896487293,3.547,140.96,140.9,44.33]
[1727896487603,0.12502,140.99,140.91,3.548]
[1727896488296,0.12502,140.99,140.9,44.33]
[1727896488895,0.12502,140.99,140.92,3.5477]
[1727896489298,3.5469,140.96,140.92,3.5477]
[1727896489492,0.12502,140.99,140.9,44.33]
[1727896490107,3.5467,140.97,140.9,44.33]
[1727896490493,0.12502,140.99,140.93,44.33]
[1727896490696,0.12502,140.99,140.88,2.6524]
[1727896490697,0.12502,140.99,140.98,47.8764]
[1727896492191,0.12502,140.99,140.98,44.33]
[1727896492397,0.12502,140.99,140.95,44.33]
[1727896492998,0.12502,140.99,140.94,5.4383]
[1727896493409,3.5471,140.95,140.94,5.4383]
[1727896493705,3.5471,140.95,140.91,47.8779]
[1727896493706,0.12502,140.99,140.91,44.33]
[1727896493911,3.5478,140.93,140.89,3.5485]
[1727896494206,0.12502,140.99,140.89,3.5485]
[1727896494410,0.12502,140.99,140.88,46.9824]
[1727896494411,3.5484,140.9,140.88,46.9824]
[1727896494613,3.5484,140.9,140.87,3.67402]
[1727896494801,56.53,140.98,140.87,3.67402]
[1727896495114,56.53,140.98,140.88,3.5489]
[1727896495410,56.53,140.98,140.87,0.12502]
[1727896495808,3.5472,140.95,140.87,3.67402]
[1727896496011,56.53,140.98,140.87,3.67402]
[1727896496308,56.53,140.98,140.87,0.12502]
[1727896496511,3.5483,140.91,140.88,3.5488]
[1727896497307,12.2,140.98,140.88,44.33]
[1727896497707,0.12502,140.99,140.9,44.33]
[1727896498013,0.12502,140.99,140.93,44.33]
[1727896498808,0.12502,140.99,140.95,44.33]
[1727896499329,0.12502,140.99,140.91,2.6831]
[1727896499330,0.12502,140.99,140.97,44.33]
[1727896499507,3.5451,141.04,140.97,44.33]
[1727896499814,0.12502,141.05,141.0,44.33]
[1727896500206,0.12502,141.05,141.02,44.33]
[1727896500705,0.12502,141.05,140.98,2.7108]
[1727896501011,0.12502,141.05,140.98,47.0408]
[1727896501404,0.12502,141.05,140.98,2.7108]
[1727896501608,3.5458,141.01,140.98,2.7108]
[1727896501906,44.45502,141.05,140.96,2.8469]
[1727896502109,3.5471,140.96,140.92,3.5477]
[1727896502505,3.5471,140.96,140.9,56.65]
[1727896502709,3.546,141.0,140.9,60.1981]
[1727896502904,56.65,141.02,140.9,60.1981]
[1727896503213,3.5474,140.94,140.9,56.65]
[1727896503411,56.65,141.02,140.9,56.65]
[1727896503716,1.0,141.01,140.9,56.65]
[1727896503910,3.5474,140.94,140.9,60.1982]
[1727896504220,1.0,141.01,140.9,56.65]
[1727896504420,3.5474,140.94,140.9,56.65]
[1727896504717,3.5474,140.94,140.88,2.6835]
[1727896505020,3.5474,140.94,140.9,3.5483]
[1727896505217,3.5474,140.94,140.89,2.7272]
[1727896508217,3.5474,140.94,140.89,6.2757]
[1727896508418,3.5474,140.94,140.89,2.7272]
[1727896508812,44.33,141.0,140.89,2.7272]
[1727896509017,1.0,141.01,140.9,44.33]
[1727896509535,3.5474,140.94,140.89,18.5957]
[1727896509706,3.5474,140.94,140.89,2.7272]
[1727896510023,3.5474,140.94,140.88,2.6835]
[1727896510820,47.8774,140.94,140.93,0.00032]
[1727896512313,3.5474,140.94,140.93,0.00032]
[1727896513109,47.8774,140.94,140.93,0.00032]
[1727896513539,3.5489,140.88,140.87,0.12502]
[1727896513737,44.33,140.94,140.81,1.12502]
[1727896513738,44.33,140.89,140.81,1.12502]
[1727896513917,44.33,140.85,140.81,1.12502]
[1727896514419,3.5504,140.82,140.81,1.12502]
[1727896515122,44.33,140.87,140.81,1.12502]
[1727896515720,3.5504,140.82,140.81,1.12502]
[1727896517027,3.5503,140.83,140.81,1.12502]
[1727896517228,44.33,140.87,140.81,1.12502]
[1727896517530,3.5503,140.83,140.81,1.12502]
[1727896518431,13.32,140.88,140.81,1.12502]
[1727896518740,44.33,140.85,140.81,1.12502]
[1727896518932,47.8804,140.82,140.81,1.12502]
[1727896519128,56.65,140.82,140.8,1.0]
[1727896519332,56.65,140.82,140.78,1.0]
[1727896519627,56.65,140.82,140.76,1.0]
[1727896519628,88.66,140.79,140.76,1.0]
[1727896519832,88.66,140.79,140.72,1.0]
[1727896520030,47.8822,140.75,140.72,1.0]
[1727896520225,3.5522,140.75,140.72,1.0]
[1727896522327,47.8822,140.75,140.72,1.0]
[1727896522728,3.5527,140.73,140.72,1.0]
[1727896522932,44.33,140.75,140.7,1.0]
[1727896523236,1.0,140.74,140.7,1.0]
[1727896523427,56.65,140.77,140.7,1.0]
[1727896524230,3.5524,140.75,140.71,3.5532]
[1727896524436,12.32,140.77,140.7,1.0]
[1727896524933,12.32,140.77,140.72,3.5528]
[1727896525128,56.65,140.77,140.7,1.0]
[1727896525632,3.58198592,140.8,140.7,1.0]
[1727896525633,44.33,140.79,140.7,1.0]
[1727896525838,0.12502,140.81,140.7,1.0]
[1727896526132,0.12502,140.81,140.7,45.33]
[1727896527235,0.12502,140.81,140.74,3.5523]
[1727896527434,0.12502,140.81,140.7,1.0]
[1727896527435,3.47452206,140.8,140.7,1.0]
[1727896527733,3.5519,140.77,140.73,3.5524]
[1727896528336,3.62334989,140.81,140.73,3.5524]
[1727896528540,0.12502,140.81,140.71,44.33]
[1727896529133,3.5512,140.79,140.71,44.33]
[1727896529429,0.12502,140.81,140.71,44.33]
[1727896529632,3.5511,140.8,140.76,3.5518]
[1727896529835,0.12502,140.81,140.71,44.33]
[1727896530137,3.551,140.8,140.76,3.5518]
[1727896530325,0.12502,140.81,140.73,44.33]
[1727896530939,0.12502,140.81,140.73,56.25]
[1727896531342,0.12502,140.81,140.79,3.551]
[1727896531639,0.12502,140.81,140.73,56.25]
[1727896532439,3.551,140.8,140.75,3.5521]
[1727896532644,3.551,140.8,140.73,56.25]
[1727896532838,0.12502,140.81,140.7,45.33]
[1727896533046,3.5516,140.78,140.74,3.5522]
[1727896533243,3.60172869,140.81,140.7,45.33]
[1727896533546,0.12502,140.81,140.7,45.33]
[1727896533750,0.12502,140.81,140.73,44.33]
[1727896534038,0.12502,140.81,140.75,44.33]
[1727896534248,0.12502,140.87,140.77,44.33]
[1727896534447,0.12502,140.87,140.78,5.6037]
[1727896534648,3.5496,140.86,140.82,3.5502]
[1727896534846,0.12502,140.87,140.78,5.6037]
[1727896535236,3.5497,140.85,140.81,3.5504]
[1727896535436,0.12502,140.87,140.78,5.6037]
[1727896535845,3.5503,140.83,140.79,3.551]
[1727896536142,0.12502,140.87,140.78,5.6037]
[1727896536343,3.5498,140.85,140.79,3.5511]
[1727896536653,0.12502,140.87,140.78,49.9337]
[1727896536944,0.12502,140.87,140.84,3.5497]
[1727896537144,0.12502,140.87,140.81,44.33]
[1727896537345,0.12502,140.87,140.79,44.33]
[1727896537540,3.5497,140.85,140.79,44.33]
[1727896537740,0.12502,140.87,140.79,44.33]
[1727896538532,3.5503,140.83,140.79,3.551]
[1727896538746,0.12502,140.87,140.78,5.6037]
[1727896539337,0.12502,140.87,140.79,2.5895]
[1727896539532,12.04502,140.87,140.79,2.5895]
[1727896539742,44.33,140.86,140.78,5.6037]
[1727896540040,45.33,140.86,140.78,5.6037]
[1727896540550,44.33,140.84,140.75,0.12502]
[1727896540847,3.5513,140.79,140.76,3.5519]
[1727896541443,3.5515,140.78,140.75,3.67702]
[1727896541637,44.33,140.84,140.75,0.12502]
[1727896541950,1.0,140.86,140.75,0.12502]
[1727896541951,44.33,140.83,140.75,0.12502]
[1727896542340,3.5517,140.77,140.75,0.12502]
[1727896542646,11.92,140.82,140.75,0.12502]
[1727896542850,3.5516,140.78,140.75,0.12502]
[1727896543032,3.62531969,140.81,140.75,0.12502]
[1727896543436,3.5517,140.77,140.75,0.12502]
[1727896543648,44.33,140.81,140.75,0.12502]
[1727896543848,3.5519,140.76,140.75,0.12502]
[1727896544439,47.8819,140.76,140.75,0.12502]
[1727896544938,3.5519,140.76,140.75,0.12502]
[1727896545133,3.5532,140.71,140.7,1.0]
[1727896545638,44.33,140.73,140.7,1.0]
[1727896545839,3.5532,140.71,140.7,1.0]
[1727896547142,47.8832,140.71,140.7,1.0]
[1727896547339,51.4480794,140.71,140.7,1.0]
[1727896547541,3.5526,140.74,140.7,1.0]
[1727896547847,11.46,140.75,140.7,1.0]
[1727896548349,11.46,140.75,140.7,3.7798]
[1727896549036,11.46,140.8,140.75,3.5521]
[1727896549234,3.5513,140.79,140.75,3.5521]
[1727896549451,11.46,140.8,140.7,50.7576]
[1727896549649,3.5516,140.78,140.74,3.5523]
[1727896549838,0.12502,140.81,140.72,44.33]
[1727896550038,0.12502,140.81,140.75,3.5519]
[1727896550556,48.04594481,140.81,140.7,62.2176]
[1727896550755,11.46,140.8,140.7,62.2176]
[1727896551049,3.5512,140.79,140.7,62.2176]
[1727896551246,11.46,140.8,140.7,62.2176]
[1727896551451,3.5516,140.78,140.7,62.2176]
[1727896551647,11.46,140.8,140.7,62.2176]
[1727896551869,11.46,140.8,140.75,3.5521]
[1727896552055,3.5517,140.77,140.7,62.2176]
[1727896552443,0.12502,140.81,140.7,62.2176]
[1727896553153,3.5513,140.79,140.7,62.2176]
[1727896553653,15.13909115,140.81,140.7,62.2176]
[1727896553851,11.58502,140.81,140.7,62.2176]
[1727896554547,59.52380215,140.81,140.7,62.2176]
[1727896554755,59.52380215,140.81,140.7,50.7576]